Cogmind - Beta 16 @@@ ROGUE MODE // 2026.01.27 @ 12:35:22 Player: Wulphy Result: Destroyed by SP-JPC(p) with EM Pulse Gun Performance ------------- Evolutions (0) 0 Regions Visited (4) 800 Robots Destroyed (30) 150 Value Destroyed (921) 921 Prototype IDs (23) 460 Alien Tech Used (0) 0 Bonus (800) 800 TOTAL SCORE: 3131 Bonus ------- Registered with UFD 300 Met Optimus in HQ 500 Cogmind --------- Core Integrity 0/250 Matter 254/300 Energy 140/140 System Corruption 2% Temperature Warm (150) Movement Rolling (155) Ox5 Location -9/Scraptown Parts ------- > --- POWER (1) -------- Light Deuterium Engine > --- PROPULSION (2) --- Wheel > --- UTILITY (2) ------ High-capacity Storage Unit Makeshift Light Armor Plating > --- WEAPON (2) ------- Enhanced Autogun > --- INVENTORY (20) --- Improved Treads Cooling System Coolant Injector Advanced Sensor Array Experimental Terrain Scanner Surveybot 24 Chip A0-MCA's Component Scanner Scrapoid Pod Powered Cannon Battle Rifle Compact Gauss Rifle Siege Cannon Replica Long-range Missile Launcher Great Maul DM-GVY's Chainsaw DRS Beacon (Ready) Peak State ------------ > --- POWER ------------ Subdweller Power Source > --- PROPULSION ------- Improved Treads Wheel > --- UTILITY ---------- High-capacity Storage Unit Makeshift Light Armor Plating > --- WEAPON ----------- Enhanced Autogun Gauss Cannon > --- INVENTORY -------- Improved Treads Cooling System Coolant Injector Advanced Sensor Array Experimental Terrain Scanner Surveybot 24 Chip A0-MCA's Component Scanner Scrapoid Pod Powered Cannon Battle Rifle Compact Gauss Rifle Siege Cannon Replica Long-range Missile Launcher Great Maul DM-GVY's Chainsaw DRS Beacon [Rating: 28] Favorites ----------- Power Subdweller Power Source Engine Subdweller Power Source Propulsion Light Treads Treads Light Treads Wheel Wheel Utility Makeshift Light Armor Plating Device Seismic Detector Storage Large Storage Unit Processor Transport Network Coupler Protection Makeshift Light Armor Plating Weapon Heavy Assault Rifle Energy Gun Subdweller Laser Ballistic Gun Heavy Assault Rifle Ballistic Cannon Light Cannon Special Weapon Mining Laser Build | -11 -10 -10 -9 -9 ------- Run | Yrd Mat Sub Rec Scr Slots Evolved . | . . . . . Power . | . . . . . Propulsion . | . . . . . Utility . | . . . . . Weapon . | . . . . . Parts Attached 40 | 7 4 16 6 7 Power 5 | 1 1 2 . 1 Engine 5 | 1 1 2 . 1 Core . | . . . . . Reactor . | . . . . . Propulsion 9 | 2 . 4 2 1 Treads 5 | 2 . 2 1 . Leg . | . . . . . Wheel 4 | . . 2 1 1 Hover . | . . . . . Flight . | . . . . . Utility 11 | 2 3 2 2 2 Device 2 | 1 . 1 . . Storage 4 | 1 1 . 1 1 Processor 1 | . 1 . . . Hackware . | . . . . . Protection 4 | . 1 1 1 1 Artifact . | . . . . . Weapon 15 | 2 . 8 2 3 Energy Gun 4 | 1 . 3 . . Energy Cannon . | . . . . . Ballistic Gun 7 | 1 . 3 2 1 Ballistic Cannon 3 | . . 1 . 2 Launcher . | . . . . . Special Weapon 1 | . . 1 . . Impact Weapon . | . . . . . Slashing Weapon . | . . . . . Piercing Weapon . | . . . . . Special Melee Weapon . | . . . . . Unidentified Prototypes 1 | . . . . 1 Parts Lost 11 | . . 9 . 2 Power . | . . . . . Propulsion 4 | . . 3 . 1 Utility 2 | . . 2 . . Weapon 5 | . . 4 . 1 Highest Loss Streak 4 | . . 4 . 2 To Critical Strikes . | . . . . . Average Backups 13 | 3 10 14 13 15 Power . | . 1 1 1 . Propulsion 3 | 2 4 4 5 1 Utility 3 | . 3 3 2 4 Weapon 5 | . 1 4 4 7 Tool/Special . | . . . . . Unused Backups 50 | . 4 8 3 35 Power 3 | . . 2 . 1 Propulsion 8 | . 2 . 1 5 Utility 18 | . 1 4 2 11 Weapon 17 | . 1 . . 16 Tool/Special 4 | . . 2 . 2 Average Slot Usage (%) 99 | . 99 99 100 100 Engine 13 | . 13 14 14 14 Treads 18 | . 27 22 14 13 Wheel 9 | . . 5 14 14 Device 3 | . 12 6 . . Storage 14 | . 14 14 14 14 Protection 10 | . 1 7 13 14 Energy Gun 7 | . 14 13 4 . Ballistic Gun 18 | . 14 9 23 25 Ballistic Cannon 2 | . . 4 . 2 Peak Build Rating 28 | 7 8 15 18 28 Average Rating 15 | 5 7 11 17 21 On Entrance 9 | . 7 8 15 18 Avg Prop Armor Cover (%) 10 | . . 12 9 9 Naked Turns . | . . . . . Heaviest Build 59 | 14 31 35 54 59 Greatest Support 40 | 40 40 40 20 20 Greatest Overweight (x) 5 | . 1 2 5 5 Average Overweight (x) 2 | . . . 3 4 Largest Inventory Capacity 20 | 8 15 15 20 20 Average Capacity 16 | 7 13 15 18 20 Most Carried 20 | 6 15 15 16 20 Average Carried 15 | 4 10 14 15 18 Final Capacity 20 | 8 15 15 20 20 Final Carried 20 | 6 15 15 16 20 Class Distribution -------------------- 90% | Mutant 9% | Scavenger-Mutant Dominant Class ---------------- Mutant | -10/Materials Mutant | -10/Subcaves Mutant | -9/Recycling Mutant | -9/Scraptown Resources | -11 -10 -10 -9 -9 ----------- Run | Yrd Mat Sub Rec Scr Matter Collected 967 | 281 213 263 96 114 Remotely . | . . . . . Salvage Created 1307 | 130 387 404 279 107 Parts 85 | 9 16 40 15 5 Haulers Intercepted 1 | . 1 . . . Recyclers Shooed . | . . . . . Parts Field Recycled . | . . . . . Retrieved Matter . | . . . . . Parts Self-Destructed 10 | . . 10 . . Prevented . | . . . . . Parts Restored . | . . . . . Kills | -11 -10 -10 -9 -9 ------- Run | Yrd Mat Sub Rec Scr Combat Hostiles Destroyed 22 | . 7 10 3 2 Guns 19 | . 7 9 3 . Cannons 3 | . . 1 . 2 Classes Destroyed 11 | 2 3 3 1 2 Tunneler 2 | 2 . . . . Hauler 1 | . 1 . . . Recycler 3 | 1 . . 2 . Turret 2 | . . 2 . . Swarmer 2 | . . 2 . . Grunt 5 | . 5 . . . Sentry 3 | . . . 3 . Artisan 1 | . . 1 . . Subdweller 10 | . 2 8 . . Guru 1 | . . . . 1 Scrapper 1 | . . . . 1 Best Kill Streak 3 | 2 2 3 2 1 Combat Bots Only 2 | . 2 2 1 1 Max Kills in Single Turn 1 | 1 1 1 1 1 Gunslinging . | . . . . . Exploded . | . . . . . Melee . | . . . . . Uniques/NPCs Destroyed . | . . . . . Combat | -11 -10 -10 -9 -9 -------- Run | Yrd Mat Sub Rec Scr Hostile Shots Fired 199 | . 20 125 13 41 Missed 63 | . 5 44 6 8 Hits 136 | . 15 81 7 33 Projectile 136 | . 15 81 7 33 Critical Strikes 7 | . 1 2 . 4 Part Disruptions 1 | . . . . 1 Damage Taken 1945 | . 182 1158 103 502 Core 260 | . 22 115 12 111 Absorbed by Shields . | . . . . . Redirected to Shielding 26 | . . 26 . . Core Remaining (%) 100 | 100 . . . . Volleys Fired 140 | 11 23 82 12 12 Largest 2 | 2 2 2 2 2 Hottest 100 | 70 70 100 90 65 Shots Fired 233 | 22 45 125 22 19 Gun 206 | 22 45 110 22 7 Cannon 25 | . . 13 . 12 Launcher . | . . . . . Special 2 | . . 2 . . Kinetic 108 | 11 23 43 12 19 Thermal 125 | 11 22 82 10 . Explosive . | . . . . . Electromagnetic . | . . . . . Robot Hit Streak 27 | 6 12 11 23 27 Robot Miss Streak 4 | 1 2 4 . 2 Penetration Max . | . . . . . Secondary Targets 2 | . . 2 . . Max Gunslinging Chain 1 | . . 1 . . Shots Hit Robots 137 | 16 32 57 21 11 Core Hits 54 | 5 17 24 6 2 Critical Kills . | . . . . . Critical Parts Destroyed 1 | . . . 1 . Critical Strikes 3 | 1 . . 1 1 Burn 1 | 1 . . . . Destroy 1 | . . . 1 . Blast 1 | . . . . 1 Melee Attacks . | . . . . . Impact . | . . . . . Slashing . | . . . . . Piercing . | . . . . . Sneak Attacks . | . . . . . Combat Hostiles . | . . . . . Follow-up Attacks . | . . . . . Damage Inflicted 2165 | 162 341 988 428 246 Guns 1860 | 162 341 827 428 102 Cannons 305 | . . 161 . 144 Explosions . | . . . . . Melee . | . . . . . Ramming . | . . . . . Kinetic 1076 | 63 117 425 225 246 Thermal 1089 | 99 224 563 203 . Explosive . | . . . . . Electromagnetic . | . . . . . Impact . | . . . . . Slashing . | . . . . . Piercing . | . . . . . Highest Corruption 1 | . . . . 1 Average Corruption 1 | . . . . 1 Corruption Purged . | . . . . . Corruption Blocked . | . . . . . Overload Shots . | . . . . . Overflow Damage 13 | . . . . 13 Projectiles 13 | . . . . 13 Explosions . | . . . . . Melee . | . . . . . Knockbacks 7 | . . 3 . 4 Impact . | . . . . . Kinetic 6 | . . 3 . 3 Secondary 1 | . . . . 1 Self-Inflicted Damage . | . . . . . Shots . | . . . . . Rammed . | . . . . . Targets Rammed . | . . . . . Kicked . | . . . . . Crushed . | . . . . . Highest Temperature 381 | 110 124 381 108 179 Average Temperature 64 | 44 46 182 40 83 Received Heat Transfer 1277 | . 117 853 27 280 Siege Activations . | . . . . . Martial Activations . | . . . . . Shielding Activations . | . . . . . Robots Disrupted . | . . . . . Combat Hostiles . | . . . . . Robots Corrupted . | . . . . . Combat Hostiles . | . . . . . Parts Fried . | . . . . . Impact Corruptions 1 | . . . . 1 Robots Melted . | . . . . . Combat Hostiles . | . . . . . Parts Melted 2 | . 1 . . 1 Heat Transferred 2230 | 370 666 944 250 . Parts Sabotaged . | . . . . . Parts Stolen . | . . . . . Parts Stripped . | . . . . . Power Chain Reactions . | . . . . . Alert | -11 -10 -10 -9 -9 ------- Run | Yrd Mat Sub Rec Scr Maximum Alert Level . | . . . . . Low Security (%) 100 | 100 100 . 100 . Level 1 . | . . . . . Level 2 . | . . . . . Level 3 . | . . . . . Level 4 . | . . . . . Level 5 . | . . . . . High Security . | . . . . . Max Security . | . . . . . Peak Influence 138 | 10 50 . 138 . Initial 34 | . . . 34 . Average 23 | 1 9 . 37 . Influence Increases 625 | 15 176 125 309 . Destroy 0b10 Robot/C 240 | . 100 80 60 . Destroy 0b10 Robot/NC 30 | 15 5 . 10 . Destroy Leader 32 | . 32 . . . Successful Hack 37 | . 8 . 29 . Select Force Hacks 210 | . . . 210 . Destroy Structure 1 | . 1 . . . Partial Spotted 15 | . 15 . . . Lose Combat Pursuer 60 | . 15 45 . . Influence Decreases 625 | 15 176 52 382 . Entered New Map 39 | . . . 39 . Time Decay 576 | 15 176 42 343 . Lost Part 10 | . . 10 . . Squads Dispatched 2 | . 2 . . . Investigation 1 | . 1 . . . Extermination . | . . . . . Reinforcement 1 | . 1 . . . Assault . | . . . . . Garrison . | . . . . . Intercept . | . . . . . Searches Triggered . | . . . . . Construction Impeded . | . . . . . Haulers Reinforced . | . . . . . Active Scanning Responses . | . . . . . Cargo Convoy Interrupts . | . . . . . Stealth | -11 -10 -10 -9 -9 --------- Run | Yrd Mat Sub Rec Scr Distress Signals 3 | . 3 . . . Communications Jammed . | . . . . . Distress Signals . | . . . . . Times Spotted 40 | . 14 13 2 11 Peak Tracking Total 5 | . 5 4 1 4 Tactical Retreats 3 | . 2 1 . . Traps | -11 -10 -10 -9 -9 ------- Run | Yrd Mat Sub Rec Scr Traps Triggered 2 | . 2 . . . Indirectly . | . . . . . Trap Hack Attempts . | . . . . . Triggered . | . . . . . Disarmed . | . . . . . Reprogrammed . | . . . . . Reused . | . . . . . Traps Extracted . | . . . . . Installed . | . . . . . Triggered . | . . . . . Machines | -11 -10 -10 -9 -9 ---------- Run | Yrd Mat Sub Rec Scr Machines Disabled 7 | . . 2 . 5 Max in Single Turn 1 | . . 1 . 1 Machines Repaired . | . . . . . Machines Dismantled . | . . . . . Machines Sabotaged . | . . . . . Overloaded Fab Kills . | . . . . . Hacking | -11 -10 -10 -9 -9 --------- Run | Yrd Mat Sub Rec Scr Machines Accessed 21 | . 3 2 13 3 Terminals 8 | . 2 . 6 . Fabricators . | . . . . . Repair Stations . | . . . . . Recycling Units 8 | . 1 . 7 . Scanalyzers . | . . . . . Garrison Access . | . . . . . Total Hacks 50 | . 9 4 32 5 Successful 36 | . 6 4 21 5 Failed 14 | . 3 . 11 . Catastrophic 1 | . . . 1 . Database Lockouts . | . . . . . Manual 35 | . 5 . 30 . Terminals 27 | . 6 . 21 . Fabricators . | . . . . . Repair Stations . | . . . . . Recycling Units 14 | . 3 . 11 . Scanalyzers . | . . . . . Garrison Access . | . . . . . Terminal Hacks 14 | . 1 4 4 5 Record 8 | . . 3 . 5 Part Schematic 2 | . . . 2 . Prototype ID Bank 1 | . . . 1 . Emergency Access Points 1 | . 1 . . . Alert Level 1 | . . . 1 . Proto ID Catalog 1 | . . 1 . . Fabricator Hacks . | . . . . . Repair Station Hacks . | . . . . . Recycling Unit Hacks 3 | . 3 . . . Process 1 | . 1 . . . Report Inventory 1 | . 1 . . . Retrieve Matter 1 | . 1 . . . Scanalyzer . | . . . . . Garrison Access Hacks . | . . . . . Unauthorized Hacks 17 | . 2 . 15 . Terminals 10 | . 2 . 8 . Botnet 4 | . 1 . 3 . Skim 6 | . 1 . 5 . Fabricators . | . . . . . Repair Stations . | . . . . . Recycling Units 7 | . . . 7 . Tunnel 7 | . . . 7 . Scanalyzers . | . . . . . Garrison Access . | . . . . . Data Cores Recovered . | . . . . . Used . | . . . . . Hacking Detections 10 | . 2 . 8 . Full Trace Events 1 | . 1 . . . Feedback Events . | . . . . . Feedback Blocked . | . . . . . Robot Schematics Acquired . | . . . . . Robots Built . | . . . . . Authchips . | . . . . . Time . | . . . . . Total Robot Build Rating . | . . . . . Part Schematics Acquired 2 | . . . 2 . Parts Built . | . . . . . Authchips . | . . . . . Time . | . . . . . Total Part Build Rating . | . . . . . Part Studies Acquired . | . . . . . Parts Repaired . | . . . . . Time . | . . . . . Parts Recycled . | . . . . . Recycled Matter 259 | . 259 . . . Retrieved Matter 259 | . 259 . . . Retrieved Components . | . . . . . Parts Scanalyzed . | . . . . . Part Schematics Acquired . | . . . . . Parts Damaged . | . . . . . Bothacking | -11 -10 -10 -9 -9 ------------ Run | Yrd Mat Sub Rec Scr Used RIF Installer . | . . . . . Robots Hacked . | . . . . . Non-combat . | . . . . . Combat . | . . . . . Robot Hacks Applied . | . . . . . Relay Couplers Released . | . . . . . Fabnet Peak Effective % . | . . . . . Robots Rewired . | . . . . . Allies Hacked . | . . . . . Hacks Repelled . | . . . . . Allies | -11 -10 -10 -9 -9 -------- Run | Yrd Mat Sub Rec Scr Total Allies . | . . . . . Largest Group . | . . . . . Highest-Rated Group . | . . . . . Highest-Rated Ally . | . . . . . Total Orders . | . . . . . Ally Attacks . | . . . . . Total Damage . | . . . . . Kills . | . . . . . Allies Corrupted . | . . . . . Allies Melted 3 | . . . . 3 Intel | -11 -10 -10 -9 -9 ------- Run | Yrd Mat Sub Rec Scr Active Infowar (turns) 1102 | 100 814 188 . . Seismic 1100 | 100 812 188 . . T.N.C. 2 | . 2 . . . Robot Analysis Total . | . . . . . Derelict Logs Recovered 6 | . . 1 . 5 Drone Launches . | . . . . . Drone Recoveries . | . . . . . Exploration | -11 -10 -10 -9 -9 ------------- Run | Yrd Mat Sub Rec Scr Turns Passed 7548 | 181 914 2499 1296 2658 Spaces Moved 3871 | 85 435 1348 544 1459 Core 2 | 2 . . . . Treads 1576 | 83 435 974 84 . Legs . | . . . . . Wheels 2293 | . . 374 460 1459 Hover . | . . . . . Flight . | . . . . . Fastest Speed 50 | 50 160 115 125 110 Average Speed 158 | 157 160 161 161 153 Slowest Speed 260 | 160 240 260 260 155 Overloaded Moves . | . . . . . Propulsion Burnouts . | . . . . . Robots Hopped . | . . . . . Potential Cave-ins . | . . . . . Cave-ins Triggered . | . . . . . Exploration Rate (%) 63 | 6 51 71 99 92 Regions Visited 4 Branch Regions 3 Pre-discovered Areas 15 | . . 2 11 2 Known Exits Taken . | . . . . . Unknown Exits Taken 4 | 1 1 1 1 . Scrap Searched 7 | . . 2 . 5 Spaces Dug . | . . . . . Terrain Destroyed 3 | . . . . 3 Melee . | . . . . . Projectile 3 | . . . . 3 AOE . | . . . . . Terrain Rammed . | . . . . . Walls Destroyed . | . . . . . Machines Disabled . | . . . . . Actions | -11 -10 -10 -9 -9 --------- Run | Yrd Mat Sub Rec Scr Total 5073 | 109 608 1544 943 1869 Wait 876 | 1 115 57 369 334 Move 3867 | 84 434 1347 543 1459 Hop . | . . . . . Pick Up 74 | 6 15 19 6 28 Fast Attach 14 | 7 4 1 . 2 Attach 13 | . 1 11 . 1 Detach 3 | . 1 2 . . Swap 28 | . 9 9 6 4 Drop 57 | . 6 15 7 29 Fire 140 | 11 23 82 12 12 Melee . | . . . . . Ram . | . . . . . Kick . | . . . . . Crush . | . . . . . Escape Stasis . | . . . . . Rewire 1 | . . 1 . . Trap . | . . . . . Miscellaneous . | . . . . . Route ------- -11/Scrapyard -10/Materials (discovered 2 exits: [*Mat] / *Sub) -10/Subcaves (discovered 3 exits: [*Mat x2] / *Rec) -9/Recycling (discovered 2 exits: [*Fac] / *Scr) -9/Scraptown (discovered 2 exits: *Fac x2) History --------- Turn | Location | Event 13 | -11/Scrapyard | Discovered new exit (range 14) 182 | -11/Scrapyard | Entered Materials 286 | -10/Materials | Discovered new exit (range 4) 316 | -10/Materials | Build established: Mutant 663 | -10/Materials | Discovered new exit (range 7) 782 | -10/Materials | Derelicts attacked the area 1096 | -10/Materials | Entered Subcaves 1404 | -10/Subcaves | A swath of the cavern ceiling suddenly collapsed 1627 | -10/Subcaves | Discovered new exit (range 6) 1690 | -10/Subcaves | Discovered new exit (range 15) 2296 | -10/Subcaves | Visited Clippyterm 2301 | -10/Subcaves | Learned location of Deep Caves (-7) 2618 | -10/Subcaves | Lost 4 parts (2n2w) 2859 | -10/Subcaves | Visited 4L-MR0's lab 2869 | -10/Subcaves | Build established: Scavenger-Mutant 2884 | -10/Subcaves | Found Powered Cannon 3193 | -10/Subcaves | Discovered new exit (range 12) 3209 | -10/Subcaves | Core integrity fell below 50% 3281 | -10/Subcaves | Learned location of Zion (-7) 3281 | -10/Subcaves | Met a Zionite searching for "candidates" 3345 | -10/Subcaves | Learned Materials stockpile data 3346 | -10/Subcaves | Shifting Twisted Machinery released Sub. Laser 3355 | -10/Subcaves | Shifting Twisted Machinery released Sub. Machine Gun 3595 | -10/Subcaves | Entered Recycling 3682 | -9/Recycling | Build established: Mutant 4309 | -9/Recycling | Discovered new exit (range 16) 4396 | -9/Recycling | Learned 2 Materials zone layouts 4462 | -9/Recycling | Learned location of Storage (-9) 4517 | -9/Recycling | Scanned before Scraplab entrance 4626 | -9/Recycling | Learned location of 1 exit from Storage 4663 | -9/Recycling | Learned Storage stockpile data 4710 | -9/Recycling | Learned Storage emergency access door positions 4768 | -9/Recycling | Learned Materials trap positions 4837 | -9/Recycling | Loaded intel: 7 recycling unit locations 4877 | -9/Recycling | Entered Scraplab 4890 | -9/Recycling | Discovered new exit (range 2) 4891 | -9/Recycling | Entered Scraptown 5193 | -9/Scraptown | Visited TADAMA 5249 | -9/Scraptown | Scanned Subdweller tech in exchange for log data 5253 | -9/Scraptown | Learned location of 2 exits from Lower Caves 5255 | -9/Scraptown | Learned Research emergency access door positions 5285 | -9/Scraptown | Discovered new exit (range 5) 5398 | -9/Scraptown | Visited Symbiants 5449 | -9/Scraptown | Visited Bundlers 5571 | -9/Scraptown | Visited Comm Corps 5847 | -9/Scraptown | Visited IN-MT5's Study 5873 | -9/Scraptown | Visited SPCMW 5938 | -9/Scraptown | Visited Shadow of the Wyrm 5972 | -9/Scraptown | Visited UFD Registry 5972 | -9/Scraptown | Registered with UFD as "Gravslider" 6005 | -9/Scraptown | Visited Scrapoid Pod Storage 6014 | -9/Scraptown | Found Scrapoid Pod 6041 | -9/Scraptown | Visited Junk Repository 6088 | -9/Scraptown | Visited Scrapoid Research Area 6156 | -9/Scraptown | Delivered Scrap Shield to a Scientist 6294 | -9/Scraptown | Visited Curators Association 6350 | -9/Scraptown | Visited Infowarlord's Domain 6370 | -9/Scraptown | Visited Derelict Rescue Squad 6380 | -9/Scraptown | Found DRS Beacon 6401 | -9/Scraptown | Visited Chapter 10 6439 | -9/Scraptown | Visited Scrap Suit Storage 6467 | -9/Scraptown | Visited Supply Room 6495 | -9/Scraptown | Visited A0-MCA Data Center 6542 | -9/Scraptown | Given a B rating by A0-MCA 6550 | -9/Scraptown | Found A0-MCA's Component Scanner 6876 | -9/Scraptown | Found Exp. Terrain Scanner 6978 | -9/Scraptown | Met Optimus 6978 | -9/Scraptown | Accepted into 0bPrime 7378 | -9/Scraptown | Civil war broke out across Scraptown 7383 | -9/Scraptown | Found DM-GVY's Chainsaw 7392 | -9/Scraptown | Found Siege Cannon Replica 7403 | -9/Scraptown | Found Surveybot 24 Chip 7452 | -9/Scraptown | Identified exit to Factory 7458 | -9/Scraptown | Lost 4 allies 7480 | -9/Scraptown | Core integrity fell below 20% 7549 | -9/Scraptown | Destroyed by SP-JPC(p) with EM Pulse Gun Last Messages --------------- 07506_ RD-BNK: "RE-RE-RECYCLE!" 07508_ 9A-KRK(j) destroyed. 07513_ 3R-RLD(j): "Triborg not so powerful after all." 07533_ Machine disabled. 07536_ Slug penetrates Wall. 07539_ Slug penetrates SP-JPC(p). 07539_ SP-JPC(p) knocked back. 07542_ Destroyed EM Pulse Gun. 07542_ 41-W8A(p) suffers critical hit (Blast). 07542_ Destroyed Imp. Hover Unit. 07542_ 41-W8A(p) knocked back. 07542_ Destroyed Mak. Hacking Suite. 07542_ EA-XXB(p) system corrupted by crushing effect. 07544_ EA-XXB(p) misfires. 07547_ 41-W8A(p) destroyed. 07547_ Wheel destroyed. 07548_ Gauss Cannon destroyed. [Achievement: I Was Wrong!] Map ----- +----------------------------------------------------+ | | | | | | | ?????????????????????????????????????????????????? | | ?????????????????????????????????????????????????? | | ?????????????????????????????????????????????????? | | ?????????????????????????????????????????????????? | | ?????????????????????????????????????????????????? | | ?????????????????????????????????????????????????? | | ?????????????????????????????????????????????????? | | ?????????????????????????????????????????????????? | | ?????????????????????????????????????????????????? | | ?????????????????????????????????????????????????? | | ?????????????????????????????????????????????????? | | ???????????????????????????????????#?????????????? | | ?????????????????????????????????=!#?????????????? | | ?????????????????????####???????%[[??????????????? | | ????????????????????##= ##????&[